[Event "JBLN 2020"]
[Site "Uelzen"]
[Date "2020.09.19"]
[Round "8.1"]
[White "Engel, Luis"]
[Black "Kopylov, Daniel"]
[Result "0-1"]
[ECO "B65"]
[WhiteElo "2553"]
[BlackElo "2353"]
[Annotator "ChessBase"]
[PlyCount "74"]
[EventDate "2020.09.19"]
[EventType "team-tourn"]
[EventCountry "GER"]
[SourceTitle "playchess.com"]
[Source "ChessBase"]
[SourceQuality "1"]
[TimeControl "5400+30"]

1. e4 {[%emt 0:00:00]} c5 {[%emt 0:10:46]} 2. Nf3 {[%emt 0:00:00]} d6 {[%emt 0:00:50]} 3. d4 {[%emt 0:00:00]} cxd4 {[%emt 0:00:08]} 4. Nxd4 {[%emt 0:00:00]} Nf6 {[%emt 0:00:15]} 5. Nc3 {[%emt 0:00:00]} Nc6 {[%emt 0:00:21]} 6. Bg5 {[%emt 0:00:00]} e6 {[%emt 0:00:32]} 7. Qd2 {[%emt 0:00:05]} Nxd4 {[%emt 0:00:19]} 8. Qxd4 {[%emt 0:00:07]} Be7 {[%emt 0:04:06]} 9. O-O-O {[%emt 0:00:37]} O-O {[%emt 0:00:13]} 10. h4 {[%emt 0:00:05]} h6 {[%emt 0:03:52]} 11. f4 {[%emt 0:00:57]} Qa5 {[%emt 0:00:36]} 12. Kb1 {[%emt 0:07:00]} Rd8 {[%emt 0:04:59]} 13. Be2 {[%emt 0:08:26]} Bd7 {[%emt 0:03:22]} 14. g4 {[%emt 0:08:52]} Rac8 {[%emt 0:05:40]} 15. Qe3 {[%emt 0:26:22]} Rxc3 {[%emt 0:09:18]} 16. bxc3 {[%emt 0:00:10]} Rc8 {[%emt 0:03:46]} 17. Rh3 {[%emt 0:05:52]} Rc6 {[%emt 0:03:38]} 18. e5 {[%emt 0:05:10]} Rb6+ {[%emt 0:14:10]} 19. Ka1 {[%emt 0:00:10]} Nd5 {[%emt 0:07:34]} 20. Rxd5 {[%emt 0:04:21]} Qa3 {[%emt 0:01:17]} 21. Rb5 {[%emt 0:06:07]} Bxb5 {[%emt 0:04:28]} 22. c4 {[%emt 0:00:07]} Qxe3 {[%emt 0:01:40]} 23. Rxe3 {[%emt 0:00:05]} hxg5 {[%emt 0:00:15]} 24. cxb5 {[%emt 0:00:28]} gxf4 {[%emt 0:01:04]} 25. Rc3 {[%emt 0:01:55]} dxe5 {[%emt 0:02:23]} 26. Rc8+ {[%emt 0:06:49]} Bf8 {[%emt 0:00:25]} 27. c4 {[%emt 0:02:55]} Rd6 {[%emt 0:01:59]} 28. c5 {[%emt 0:01:27]} Rd5 {[%emt 0:00:50]} 29. c6 {[%emt 0:01:43]} bxc6 {[%emt 0:00:41]} 30. bxc6 {[%emt 0:00:04]} e4 {[%emt 0:00:33]} 31. c7 {[%emt 0:02:52]} Rc5 {[%emt 0:00:20]} 32. h5 {[%emt 0:00:07]} f3 {[%emt 0:02:08]} 33. Bd1 {[%emt 0:00:05]} f6 {[%emt 0:00:58]} 34. g5 {[%emt 0:03:55]} fxg5 {[%emt 0:01:01]} 35. Re8 {[%emt 0:00:58]} Rxc7 {[%emt 0:00:46]} 36. Bb3 {[%emt 0:00:05]} f2 {[%emt 0:00:40]} 37. Bxe6+ {[%emt 0:00:04]} Rf7 {[%emt 0:00:14]} 0-1

[Event "JBLN 2020"]
[Site "Uelzen"]
[Date "2020.09.19"]
[Round "8.1"]
[White "Keyser, Robin"]
[Black "Knuedel, Torben"]
[Result "1-0"]
[ECO "E05"]
[WhiteElo "2070"]
[BlackElo "2211"]
[Annotator "ChessBase"]
[PlyCount "129"]
[EventDate "2020.09.19"]
[EventType "team-tourn"]
[EventCountry "GER"]
[SourceTitle "playchess.com"]
[Source "ChessBase"]
[SourceQuality "1"]
[TimeControl "5400+30"]

1. d4 {[%emt 0:00:00]} Nf6 {[%emt 0:00:00]} 2. c4 {[%emt 0:00:00]} e6 {[%emt 0:00:00]} 3. g3 {[%emt 0:00:00]} d5 {[%emt 0:00:00]} 4. Nf3 {[%emt 0:00:00]} Be7 {[%emt 0:00:00]} 5. Bg2 {[%emt 0:00:00]} O-O {[%emt 0:00:00]} 6. O-O {[%emt 0:00:00]} dxc4 {[%emt 0:00:05]} 7. Qc2 {[%emt 0:00:02]} a6 {[%emt 0:00:03]} 8. Qxc4 {[%emt 0:01:04]} b5 {[%emt 0:00:06]} 9. Qc2 {[%emt 0:00:03]} Bb7 {[%emt 0:00:04]} 10. Bg5 {[%emt 0:00:08]} Nbd7 {[%emt 0:00:13]} 11. Bxf6 {[%emt 0:00:06]} Nxf6 {[%emt 0:00:04]} 12. Nbd2 {[%emt 0:00:08]} Rc8 {[%emt 0:00:37]} 13. Nb3 {[%emt 0:00:05]} Be4 {[%emt 0:00:18]} 14. Qc3 {[%emt 0:00:12]} Nd5 {[%emt 0:00:20]} 15. Qd2 {[%emt 0:00:04]} Bb4 {[%emt 0:00:08]} 16. Qc1 {[%emt 0:04:23]} c5 {[%emt 0:06:29]} 17. dxc5 {[%emt 0:00:16]} Qe7 {[%emt 0:01:52]} 18. Ne5 {[%emt 0:07:40]} Bxg2 {[%emt 0:02:34]} 19. Kxg2 {[%emt 0:00:57]} Bxc5 {[%emt 0:02:57]} 20. Nxc5 {[%emt 0:04:43]} Rxc5 {[%emt 0:00:47]} 21. Qd2 {[%emt 0:00:18]} Qc7 {[%emt 0:10:02]} 22. Nd3 {[%emt 0:02:51]} Rc2 {[%emt 0:00:58]} 23. Qd1 {[%emt 0:00:14]} Rc8 {[%emt 0:02:18]} 24. Kg1 {[%emt 0:02:54]} h6 {[%emt 0:25:46]} 25. Rc1 {[%emt 0:03:06]} a5 {[%emt 0:05:34]} 26. Rxc2 {[%emt 0:10:12]} Qxc2 {[%emt 0:00:26]} 27. Kg2 {[%emt 0:01:43]} Qc6 {[%emt 0:08:05]} 28. Kg1 {[%emt 0:00:32]} Qc4 {[%emt 0:04:49]} 29. Qb1 {[%emt 0:03:19]} Qe4 {[%emt 0:04:16]} 30. e3 {[%emt 0:09:47]} h5 {[%emt 0:04:40]} 31. h4 {[%emt 0:04:21]} Rc4 {[%emt 0:06:44]} 32. Rd1 {[%emt 0:06:38]} g6 {[%emt 0:03:00]} 33. Ne1 {[%emt 0:01:45]} Qg4 {[%emt 0:01:30]} 34. Qd3 {[%emt 0:02:17]} g5 {[%emt 0:02:55]} 35. b3 {[%emt 0:08:52]} Re4 {[%emt 0:01:17]} 36. Ng2 {[%emt 0:00:17]} gxh4 {[%emt 0:02:49]} 37. Nxh4 {[%emt 0:01:37]} Nxe3 {[%emt 0:02:32]} 38. Re1 {[%emt 0:00:46]} f5 {[%emt 0:03:50]} 39. Rxe3 {[%emt 0:01:39]} Rd4 {[%emt 0:00:18]} 40. Qe2 {[%emt 0:00:11]} Rd1+ {[%emt 0:00:58]} 41. Kg2 {[%emt 0:00:13]} Qxe2 {[%emt 0:00:00]} 42. Rxe2 {[%emt 0:00:00]} Kf7 {[%emt 0:00:00]} 43. Nf3 {[%emt 0:00:00]} Kf6 {[%emt 0:00:00]} 44. Rd2 {[%emt 0:00:00]} Rc1 {[%emt 0:00:00]} 45. Rd6 {[%emt 0:00:00]} Ra1 {[%emt 0:00:00]} 46. Rd2 {[%emt 0:00:00]} Rc1 {[%emt 0:00:00]} 47. Nd4 {[%emt 0:00:00]} Rc5 {[%emt 0:00:00]} 48. Rc2 {[%emt 0:00:00]} Rd5 {[%emt 0:00:00]} 49. Ne2 {[%emt 0:00:00]} Rd7 {[%emt 0:00:00]} 50. Nf4 {[%emt 0:00:00]} e5 {[%emt 0:00:00]} 51. Rc6+ {[%emt 0:00:00]} Kf7 {[%emt 0:00:00]} 52. Nxh5 {[%emt 0:00:00]} Rd2 {[%emt 0:00:00]} 53. Rf6+ {[%emt 0:00:00]} Ke7 {[%emt 0:00:46]} 54. Rxf5 {[%emt 0:00:00]} Ke6 {[%emt 0:00:06]} 55. Rf6+ {[%emt 0:00:00]} Kd5 {[%emt 0:00:46]} 56. g4 {[%emt 0:00:00]} e4 {[%emt 0:02:07]} 57. Kf1 {[%emt 0:00:00]} Rxa2 {[%emt 0:00:21]} 58. g5 {[%emt 0:00:00]} a4 {[%emt 0:02:06]} 59. g6 {[%emt 0:00:01]} Ra1+ {[%emt 0:00:42]} 60. Kg2 {[%emt 0:00:27]} axb3 {[%emt 0:00:18]} 61. g7 {[%emt 0:00:20]} b2 {[%emt 0:00:12]} 62. g8=Q+ {[%emt 0:00:08]} Kc5 {[%emt 0:00:30]} 63. Qb3 {[%emt 0:00:31]} b1=Q {[%emt 0:00:20]} 64. Qc3+ {[%emt 0:00:05]} Kd5 {[%emt 0:00:09]} 65. Nf4# {[%emt 0:00:05]} 1-0

[Event "JBLN 2020"]
[Site "Uelzen"]
[Date "2020.09.19"]
[Round "8.2"]
[White "Hovhannisyan, Artur"]
[Black "Woelk, Tom-Frederic"]
[Result "0-1"]
[ECO "B55"]
[WhiteElo "2182"]
[BlackElo "2253"]
[Annotator "ChessBase"]
[PlyCount "86"]
[EventDate "2020.09.19"]
[EventType "team-tourn"]
[EventCountry "GER"]
[SourceTitle "playchess.com"]
[Source "ChessBase"]
[SourceQuality "1"]
[TimeControl "5400+30"]

1. e4 {[%emt 0:11:06]} c5 {[%emt 0:00:00]} 2. Nf3 {[%emt 0:00:20]} d6 {[%emt 0:00:00]} 3. d4 {[%emt 0:00:03]} cxd4 {[%emt 0:00:00]} 4. Nxd4 {[%emt 0:00:04]} Nf6 {[%emt 0:00:00]} 5. f3 {[%emt 0:00:13]} e5 {[%emt 0:00:00]} 6. Nb3 {[%emt 0:00:02]} Be6 {[%emt 0:00:00]} 7. c4 {[%emt 0:00:18]} Nbd7 {[%emt 0:00:01]} 8. Nc3 {[%emt 0:00:18]} Rc8 {[%emt 0:00:08]} 9. Nd5 {[%emt 0:01:39]} Nxe4 {[%emt 0:02:27]} 10. fxe4 {[%emt 0:12:30]} Qh4+ {[%emt 0:00:08]} 11. Kd2 {[%emt 0:00:36]} Nf6 {[%emt 0:03:18]} 12. g3 {[%emt 0:28:58]} Nxe4+ {[%emt 0:04:25]} 13. Kc2 {[%emt 0:03:07]} Nxg3 {[%emt 0:03:33]} 14. hxg3 {[%emt 0:07:35]} Qxh1 {[%emt 0:03:10]} 15. Ne3 {[%emt 0:02:22]} Be7 {[%emt 0:02:43]} 16. Bd3 {[%emt 0:01:40]} Qh2+ {[%emt 0:03:13]} 17. Bd2 {[%emt 0:00:51]} d5 {[%emt 0:08:46]} 18. Bf5 {[%emt 0:11:09]} dxc4 {[%emt 0:10:19]} 19. Na5 {[%emt 0:00:36]} O-O {[%emt 0:04:41]} 20. Qf3 {[%emt 0:07:52]} Bxf5+ {[%emt 0:01:43]} 21. Nxf5 {[%emt 0:01:36]} Bg5 {[%emt 0:00:55]} 22. Rd1 {[%emt 0:01:17]} Rfd8 {[%emt 0:02:15]} 23. Ne3 {[%emt 0:01:11]} Bxe3 {[%emt 0:09:22]} 24. Qxe3 {[%emt 0:00:10]} b6 {[%emt 0:02:08]} 25. Nb7 {[%emt 0:00:56]} Rd7 {[%emt 0:00:51]} 26. Qf3 {[%emt 0:01:07]} Rb8 {[%emt 0:00:51]} 27. Qc6 {[%emt 0:04:04]} Rdxb7 {[%emt 0:01:13]} 28. Kc1 {[%emt 0:00:21]} Re7 {[%emt 0:04:01]} 29. Bb4 {[%emt 0:01:33]} Ree8 {[%emt 0:00:21]} 30. Rh1 {[%emt 0:00:31]} Qe2 {[%emt 0:01:00]} 31. Qd7 {[%emt 0:00:51]} c3 {[%emt 0:03:22]} 32. Bxc3 {[%emt 0:00:25]} Qe3+ {[%emt 0:00:06]} 33. Qd2 {[%emt 0:00:38]} Qxd2+ {[%emt 0:00:07]} 34. Kxd2 {[%emt 0:00:01]} f6 {[%emt 0:00:19]} 35. g4 {[%emt 0:00:06]} h6 {[%emt 0:00:05]} 36. Ke3 {[%emt 0:00:09]} Red8 {[%emt 0:00:07]} 37. Ke4 {[%emt 0:00:10]} Kf7 {[%emt 0:00:05]} 38. Rf1 {[%emt 0:00:33]} Rbc8 {[%emt 0:00:10]} 39. Ke3 {[%emt 0:00:37]} Rc4 {[%emt 0:00:04]} 40. Rg1 {[%emt 0:00:10]} Ke6 {[%emt 0:01:11]} 41. Rg2 {[%emt 0:00:23]} Rdc8 {[%emt 0:00:12]} 42. Kd3 {[%emt 0:00:10]} Rf4 {[%emt 0:00:10]} 43. Ke3 {[%emt 0:01:31]} Rcc4 {[%emt 0:00:06]} 0-1

[Event "JBLN 2020"]
[Site "Uelzen"]
[Date "2020.09.19"]
[Round "8.2"]
[White "von Estorff, Jacob"]
[Black "Keyser, Philipp"]
[Result "1-0"]
[ECO "B94"]
[WhiteElo "2125"]
[BlackElo "2030"]
[Annotator "ChessBase"]
[PlyCount "47"]
[EventDate "2020.09.19"]
[EventType "team-tourn"]
[EventCountry "GER"]
[SourceTitle "playchess.com"]
[Source "ChessBase"]
[SourceQuality "1"]
[TimeControl "5400+30"]

1. e4 {[%emt 0:00:00]} c5 {[%emt 0:00:00]} 2. Nf3 {[%emt 0:00:00]} d6 {[%emt 0:00:00]} 3. d4 {[%emt 0:00:30]} cxd4 {[%emt 0:00:00]} 4. Nxd4 {[%emt 0:00:05]} Nf6 {[%emt 0:00:00]} 5. Nc3 {[%emt 0:00:49]} a6 {[%emt 0:00:06]} 6. Bc4 {[%emt 0:01:17]} e6 {[%emt 0:03:08]} 7. Bg5 {[%emt 0:01:44]} Nbd7 {[%emt 0:02:53]} 8. O-O {[%emt 0:01:44]} b5 {[%emt 0:02:05]} 9. Bxe6 {[%emt 0:13:56]} fxe6 {[%emt 0:00:15]} 10. Nxe6 {[%emt 0:00:23]} Qb6 {[%emt 0:01:30]} 11. Nd5 {[%emt 0:04:46]} Nxd5 {[%emt 0:01:27]} 12. Qxd5 {[%emt 0:01:44]} Nb8 {[%emt 0:30:46]} 13. Nxf8 {[%emt 0:07:22]} Rxf8 {[%emt 0:01:56]} 14. Qxa8 {[%emt 0:03:16]} Kd7 {[%emt 0:01:11]} 15. Be3 {[%emt 0:01:22]} Qc7 {[%emt 0:01:32]} 16. Qd5 {[%emt 0:02:49]} Bb7 {[%emt 0:01:24]} 17. Qg5 {[%emt 0:00:21]} Rf7 {[%emt 0:00:58]} 18. Qg4+ {[%emt 0:00:12]} Ke8 {[%emt 0:00:14]} 19. Rad1 {[%emt 0:00:22]} Re7 {[%emt 0:02:39]} 20. Bg5 {[%emt 0:01:10]} Rxe4 {[%emt 0:01:30]} 21. Rfe1 {[%emt 0:00:09]} Qxc2 {[%emt 0:01:29]} 22. Rxe4+ {[%emt 0:00:06]} Qxe4 {[%emt 0:00:58]} 23. Qxe4+ {[%emt 0:00:08]} Bxe4 {[%emt 0:00:04]} 24. Re1 {[%emt 0:00:07]} 1-0

[Event "JBLN 2020"]
[Site "Uelzen"]
[Date "2020.09.19"]
[Round "8.3"]
[White "Weihrauch, Jakob"]
[Black "Koehler, Inken"]
[Result "1/2-1/2"]
[ECO "B82"]
[WhiteElo "2184"]
[BlackElo "1958"]
[Annotator "NA"]
[PlyCount "125"]
[EventDate "2020.09.19"]
[EventType "team-tourn"]
[EventCountry "GER"]
[SourceTitle "playchess.com"]
[Source "ChessBase"]
[SourceQuality "1"]
[TimeControl "5400+30"]

1. e4 {[%emt 0:00:00]} c5 {[%emt 0:09:44]} 2. Nf3 {[%emt 0:00:00]} e6 {[%emt 0:00:26]} 3. d4 {[%emt 0:00:18]} cxd4 {[%emt 0:00:07]} 4. Nxd4 {[%emt 0:00:05]} a6 {[%emt 0:00:17]} 5. Nc3 {[%emt 0:00:19]} Qc7 {[%emt 0:00:13]} 6. f4 {[%emt 0:00:51]} d6 {[%emt 0:02:39]} 7. Bd3 {[%emt 0:01:23]} Nf6 {[%emt 0:00:29]} 8. g4 {[%emt 0:02:28]} Nc6 {[%emt 0:02:33]} 9. Nxc6 {[%emt 0:00:19]} Qxc6 {[%emt 0:00:29]} 10. g5 {[%emt 0:00:23]} Nd7 {[%emt 0:00:55]} 11. Qf3 {[%emt 0:01:18]} Nc5 {[%emt 0:05:25]} 12. Be3 {[%emt 0:02:58]} b5 {[%emt 0:02:35]} 13. a3 {[%emt 0:02:29]} Bb7 {[%emt 0:10:19]} 14. O-O-O {[%emt 0:03:49]} O-O-O {[%emt 0:05:13]} 15. Kb1 {[%emt 0:02:11]} Be7 {[%emt 0:11:40]} 16. b4 {[%emt 0:06:49]} Nd7 {[%emt 0:04:51]} 17. Ne2 {[%emt 0:04:46]} Nb6 {[%emt 0:05:38]} 18. Nd4 $11 {[%emt 0:03:34]} ({White should try} 18. Bd4 $16) 18... Qc3 {[%emt 0:10:03]} 19. Nxb5 {[%emt 0:10:08]} axb5 {[%emt 0:00:08]} 20. Bxb6 {[%emt 0:00:06]} Qxa3 {[%emt 0:00:31]} 21. Bxd8 {[%emt 0:07:46]} Qxb4+ {[%emt 0:00:10]} 22. Kc1 {[%emt 0:00:07]} Bxd8 {[%emt 0:01:22]} 23. Rd2 {[%emt 0:11:41]} Qc3 {[%emt 0:08:10]} 24. Kd1 {[%emt 0:02:59]} Ba5 {[%emt 0:00:11]} 25. Rf2 {[%emt 0:02:55]} Kc7 {[%emt 0:02:29]} 26. Rhf1 {[%emt 0:14:20]} Bc6 {[%emt 0:04:48]} 27. Qe3 {[%emt 0:05:28]} Ra8 {[%emt 0:02:02]} 28. Rg2 {[%emt 0:01:24]} Bb4 {[%emt 0:03:03]} 29. Ke2 {[%emt 0:00:43]} Bc5 {[%emt 0:02:40]} 30. Qd2 {[%emt 0:01:18]} Qd4 {[%emt 0:01:54]} 31. c3 {[%emt 0:02:49]} Qa4 {[%emt 0:00:09]} 32. Kf3 {[%emt 0:01:06]} d5 {[%emt 0:01:14]} 33. Re2 {[%emt 0:00:12]} dxe4+ {[%emt 0:01:44]} 34. Bxe4 {[%emt 0:00:13]} Rd8 {[%emt 0:00:12]} 35. Qe1 {[%emt 0:04:07]} Rd3+ {[%emt 0:00:51]} 36. Kg4 {[%emt 0:00:47]} Bxe4 {[%emt 0:00:43]} 37. Rxe4 {[%emt 0:00:03]} Qc2 {[%emt 0:00:17]} 38. Re2 {[%emt 0:02:22]} Qxc3 {[%emt 0:00:43]} 39. Qxc3 {[%emt 0:00:02]} Rxc3 {[%emt 0:00:07]} 40. f5 {[%emt 0:00:37]} Rc4+ {[%emt 0:01:36]} 41. Kh3 {[%emt 0:00:46]} Rc3+ {[%emt 0:00:00]} 42. Kg4 {[%emt 0:00:00]} Rc4+ {[%emt 0:00:00]} 43. Kh3 {[%emt 0:00:00]} Rc3+ {[%emt 0:00:00]} 44. Kg2 {[%emt 0:00:00]} e5 {[%emt 0:00:00]} 45. Rxe5 {[%emt 0:00:00]} Rc2+ {[%emt 0:00:00]} 46. Kf3 {[%emt 0:00:00]} Rc3+ {[%emt 0:00:00]} 47. Ke2 {[%emt 0:00:00]} Kd6 {[%emt 0:00:00]} 48. Re8 {[%emt 0:00:00]} Rc2+ {[%emt 0:00:00]} 49. Kd3 {[%emt 0:00:00]} Rxh2 {[%emt 0:00:00]} 50. Rd8+ {[%emt 0:00:00]} Kc7 {[%emt 0:00:00]} 51. Rg8 {[%emt 0:00:00]} Rh3+ {[%emt 0:00:00]} 52. Ke4 {[%emt 0:00:00]} Rh4+ {[%emt 0:00:00]} 53. Kd5 {[%emt 0:00:00]} Bd4 {[%emt 0:00:00]} 54. f6 {[%emt 0:00:00]} gxf6 {[%emt 0:00:00]} 55. gxf6 {[%emt 0:00:00]} Bc3 {[%emt 0:00:00]} 56. Rg7 {[%emt 0:00:00]} Rd4+ {[%emt 0:00:00]} 57. Kc5 {[%emt 0:00:00]} Rd7 {[%emt 0:00:00]} 58. Kxb5 {[%emt 0:00:00]} Kd6 {[%emt 0:00:00]} 59. Rxh7 {[%emt 0:00:00]} Ke6 {[%emt 0:00:00]} 60. Kc4 {[%emt 0:00:00]} Be5 {[%emt 0:00:18]} 61. Rh8 {[%emt 0:00:00]} Rd4+ {[%emt 0:01:23]} 62. Kc5 {[%emt 0:00:00]} Rf4 {[%emt 0:01:42]} 63. Rxf4 {[%emt 0:00:00]} 1/2-1/2

[Event "JBLN 2020"]
[Site "Uelzen"]
[Date "2020.09.19"]
[Round "8.3"]
[White "Killgus, Leonard"]
[Black "Bargsten, Justus"]
[Result "1-0"]
[ECO "C90"]
[WhiteElo "1962"]
[BlackElo "2052"]
[Annotator "NA"]
[PlyCount "105"]
[EventDate "2020.09.19"]
[EventType "team-tourn"]
[EventCountry "GER"]
[SourceTitle "playchess.com"]
[Source "ChessBase"]
[SourceQuality "1"]
[TimeControl "5400+30"]

1. e4 {[%emt 0:00:00]} e5 {[%emt 0:00:00]} 2. Nf3 {[%emt 0:00:00]} Nc6 {[%emt 0:00:00]} 3. Bb5 {[%emt 0:00:00]} a6 {[%emt 0:00:00]} 4. Ba4 {[%emt 0:00:00]} Nf6 {[%emt 0:00:00]} 5. O-O {[%emt 0:00:11]} Be7 {[%emt 0:00:00]} 6. Re1 {[%emt 0:00:33]} b5 {[%emt 0:00:00]} 7. Bb3 {[%emt 0:00:04]} d6 {[%emt 0:00:13]} 8. c3 {[%emt 0:01:25]} O-O {[%emt 0:00:10]} 9. d3 {[%emt 0:03:22]} Na5 {[%emt 0:00:38]} 10. Bc2 {[%emt 0:00:07]} c5 {[%emt 0:00:06]} 11. Nbd2 {[%emt 0:00:15]} Re8 {[%emt 0:02:22]} 12. Nf1 {[%emt 0:00:55]} Bf8 {[%emt 0:02:39]} 13. Ng3 {[%emt 0:19:17]} g6 {[%emt 0:04:39]} 14. h3 {[%emt 0:01:52]} Nc6 {[%emt 0:02:47]} 15. Nh2 {[%emt 0:02:31] C90: Closed Ruy Lopez with 7...d6: Early deviations.} Bg7 {[%emt 0:02:06]} 16. Qf3 {[%emt 0:07:08]} Be6 {[%emt 0:06:12] [#]} 17. Bb3 $146 {[%emt 0:06:09]} ({Predecessor:} 17. Bg5 h6 18. Be3 Qe7 19. Ne2 d5 20. Nf1 d4 21. Bc1 Nh5 22. Nfg3 Nxg3 23. Qxg3 dxc3 24. bxc3 {1-0 (55) Axarlian,C (2089)-Echeguren,M (1953) Buenos Aires 2019}) 17... Ra7 {[%emt 0:07:00]} 18. Bg5 {[%emt 0:17:30]} h6 {[%emt 0:04:06]} 19. Bxf6 {[%emt 0:01:56]} Bxf6 {[%emt 0:01:10]} 20. Ng4 {[%emt 0:01:10]} Bg5 {[%emt 0:01:28]} 21. Ne3 {[%emt 0:13:38]} Kg7 $11 {[%emt 0:11:57]} 22. Bd5 {[%emt 0:05:20]} Ne7 {[%emt 0:05:50]} 23. Bxe6 {[%emt 0:01:06]} fxe6 {[%emt 0:00:03]} 24. Qg4 {[%emt 0:00:06]} Ng8 {[%emt 0:00:34]} 25. h4 {[%emt 0:01:06]} Nf6 {[%emt 0:02:54]} 26. Qh3 {[%emt 0:00:34]} Bf4 {[%emt 0:00:37]} 27. Ngf1 {[%emt 0:03:30]} h5 {[%emt 0:04:09]} 28. g3 {[%emt 0:02:23]} Bh6 {[%emt 0:00:05]} 29. a4 {[%emt 0:01:20]} Rf7 {[%emt 0:00:39]} 30. axb5 {[%emt 0:04:01]} axb5 {[%emt 0:00:07]} 31. Ra6 {[%emt 0:04:10]} Nh7 {[%emt 0:02:14]} 32. Rea1 {[%emt 0:01:09]} Qf6 {[%emt 0:00:38]} 33. Qg2 {[%emt 0:00:30]} Rd8 {[%emt 0:06:09]} 34. Rb6 {[%emt 0:00:44]} g5 {[%emt 0:00:08]} 35. Raa6 {[%emt 0:00:26]} gxh4 {[%emt 0:00:43]} 36. gxh4+ {[%emt 0:00:02]} Kh8 {[%emt 0:00:20]} 37. Qh2 {[%emt 0:02:50]} Bf4 {[%emt 0:00:13]} 38. Ng3 {[%emt 0:00:08]} Rg8 {[%emt 0:00:14]} 39. Nef1 {[%emt 0:00:36]} Bxg3 {[%emt 0:01:33]} 40. Nxg3 {[%emt 0:00:22]} Rxg3+ {[%emt 0:02:20]} 41. Qxg3 {[%emt 0:00:00]} Rg7 {[%emt 0:00:00]} 42. Rb8+ {[%emt 0:00:00]} Nf8 {[%emt 0:00:00]} 43. Raa8 {[%emt 0:00:00]} Rxg3+ {[%emt 0:00:00]} 44. fxg3 {[%emt 0:00:00]} Qh6 {[%emt 0:00:00]} 45. Rxf8+ {[%emt 0:00:00]} Kg7 {[%emt 0:00:00]} 46. Rg8+ {[%emt 0:00:00]} Kf7 {[%emt 0:00:00]} 47. Rg5 {[%emt 0:00:00]} c4 {[%emt 0:00:00]} 48. dxc4 {[%emt 0:00:00]} bxc4 {[%emt 0:00:00]} 49. Ra7+ {[%emt 0:00:00]} Kf6 {[%emt 0:00:00]} 50. Rc7 {[%emt 0:00:00]} Qf8 {[%emt 0:00:00]} 51. Rxh5 {[%emt 0:00:00]} d5 {[%emt 0:00:00]} 52. g4 {[%emt 0:00:00]} dxe4 {[%emt 0:00:00]} 53. Rh6+ {[%emt 0:00:00]} 1-0

[Event "JBLN 2020"]
[Site "Uelzen"]
[Date "2020.09.19"]
[Round "8.4"]
[White "Khachatryan, Taron"]
[Black "Engel, Robert"]
[Result "0-1"]
[ECO "E22"]
[WhiteElo "2136"]
[BlackElo "2113"]
[Annotator "ChessBase"]
[PlyCount "120"]
[EventDate "2020.09.19"]
[EventType "team-tourn"]
[EventCountry "GER"]
[SourceTitle "playchess.com"]
[Source "ChessBase"]
[SourceQuality "1"]
[TimeControl "5400+30"]

1. Nf3 {[%emt 0:10:14]} Nf6 {[%emt 0:00:00]} 2. c4 {[%emt 0:00:52]} e6 {[%emt 0:00:15]} 3. d4 {[%emt 0:02:26]} d5 {[%emt 0:00:15]} 4. Nc3 {[%emt 0:00:26]} Bb4 {[%emt 0:00:22]} 5. Bg5 {[%emt 0:00:21]} h6 {[%emt 0:00:21]} 6. Bxf6 {[%emt 0:00:17]} Qxf6 {[%emt 0:00:06]} 7. e3 {[%emt 0:00:27]} O-O {[%emt 0:00:36]} 8. Qb3 {[%emt 0:00:26]} Bxc3+ {[%emt 0:10:03]} 9. Qxc3 {[%emt 0:00:19]} dxc4 {[%emt 0:06:13]} 10. Qxc4 {[%emt 0:03:07]} c6 {[%emt 0:04:49]} 11. Be2 {[%emt 0:03:15]} Nd7 {[%emt 0:00:32]} 12. Qc3 {[%emt 0:00:56]} c5 {[%emt 0:08:07]} 13. Ne5 {[%emt 0:05:54]} cxd4 {[%emt 0:09:34]} 14. exd4 {[%emt 0:00:22]} Nb6 {[%emt 0:05:43]} 15. Bf3 {[%emt 0:03:41]} Rd8 {[%emt 0:01:11]} 16. O-O {[%emt 0:02:39]} Nd5 {[%emt 0:03:05]} 17. Bxd5 {[%emt 0:01:05]} Rxd5 {[%emt 0:01:09]} 18. Rfd1 {[%emt 0:02:34]} Qd8 {[%emt 0:07:59]} 19. Rac1 {[%emt 0:02:09]} Bd7 {[%emt 0:04:00]} 20. Qc7 {[%emt 0:03:10]} f6 {[%emt 0:02:21]} 21. Ng6 {[%emt 0:02:17]} Kh7 {[%emt 0:07:15]} 22. Nf4 {[%emt 0:01:16]} Rf5 {[%emt 0:00:35]} 23. g3 {[%emt 0:02:31]} Rb5 {[%emt 0:05:13]} 24. b3 {[%emt 0:02:41]} Rb6 {[%emt 0:01:09]} 25. d5 {[%emt 0:02:07]} e5 {[%emt 0:02:15]} 26. Ne6 {[%emt 0:00:21]} Qe8 {[%emt 0:03:44]} 27. Qc2+ {[%emt 0:05:58]} Qg6 {[%emt 0:00:12]} 28. Qxg6+ {[%emt 0:00:18]} Kxg6 {[%emt 0:00:02]} 29. Rc7 {[%emt 0:00:30]} Rd6 {[%emt 0:03:46]} 30. Nc5 {[%emt 0:02:19]} Bc6 {[%emt 0:00:17]} 31. Nxb7 {[%emt 0:00:26]} Rxd5 {[%emt 0:00:04]} 32. Rc1 {[%emt 0:01:23]} Bd7 {[%emt 0:01:36]} 33. Nc5 {[%emt 0:02:27]} Bf5 {[%emt 0:00:12]} 34. Nb7 {[%emt 0:05:00]} a5 {[%emt 0:03:20]} 35. R7c5 {[%emt 0:01:16]} Rd2 {[%emt 0:02:12]} 36. Rxa5 {[%emt 0:01:07]} Rxa2 {[%emt 0:00:55]} 37. Rxa8 {[%emt 0:00:16]} Rxa8 {[%emt 0:00:02]} 38. Nd6 {[%emt 0:00:38]} Ra3 {[%emt 0:02:53]} 39. Nxf5 {[%emt 0:00:14]} Kxf5 {[%emt 0:00:07]} 40. Rc7 {[%emt 0:00:34]} g5 {[%emt 0:01:04]} 41. Rb7 {[%emt 0:00:15]} Ra2 {[%emt 0:00:50]} 42. Rb6 {[%emt 0:00:33]} h5 {[%emt 0:00:42]} 43. Kg2 {[%emt 0:01:42]} g4 {[%emt 0:02:02]} 44. Kg1 {[%emt 0:02:32]} Rb2 {[%emt 0:00:55]} 45. Kf1 {[%emt 0:01:26]} Kg5 {[%emt 0:00:13]} 46. Rb8 {[%emt 0:00:16]} h4 {[%emt 0:03:02]} 47. gxh4+ {[%emt 0:09:36]} Kxh4 {[%emt 0:00:50]} 48. b4 {[%emt 0:00:27]} Kg5 {[%emt 0:00:34]} 49. Kg2 {[%emt 0:00:13]} Kf4 {[%emt 0:00:37]} 50. b5 {[%emt 0:01:32]} e4 {[%emt 0:00:21]} 51. b6 {[%emt 0:05:51]} f5 {[%emt 0:00:00]} 52. b7 {[%emt 0:00:00]} Rb3 {[%emt 0:00:00]} 53. Rf8 {[%emt 0:00:00]} Rxb7 {[%emt 0:00:00]} 54. h3 {[%emt 0:00:00]} gxh3+ {[%emt 0:00:00]} 55. Kxh3 {[%emt 0:00:00]} Rg7 {[%emt 0:00:00]} 56. Kh2 {[%emt 0:00:00]} Rg5 {[%emt 0:00:00]} 57. Kh3 {[%emt 0:00:00]} Kf3 {[%emt 0:00:00]} 58. Kh4 {[%emt 0:00:00]} Rg4+ {[%emt 0:00:00]} 59. Kh5 {[%emt 0:00:00]} f4 {[%emt 0:00:00]} 60. Re8 {[%emt 0:00:00]} Rg2 {[%emt 0:00:00]} 0-1